{"text_format":"1","workbook":"xlsx","n_sheets":1,"sheets":["تراكيب"],"not_rendered":{"charts":0,"images":0,"macros":0,"external_links":0,"defined_names":1,"comments":0,"pivot_tables":0},"unopened":[],"bounds":{"document_bytes":16777216,"sheet_cells":100000,"rows_first":2000,"rows_last":500,"rows_between":2000,"halvings":0,"cell_chars":16384,"cell_head_chars":4096},"cells_cut":0,"cells_raw":0,"read":"whole","date_system":"1900"}

{"sheet":"تراكيب","index":0,"n_rows":48,"n_cols":42,"rows_kept":48,"cut":false,"hidden":false,"merged":[[0,17,0,20],[1,18,1,20],[2,18,2,20],[5,1,5,16],[6,1,6,4],[6,5,6,8],[6,9,6,12],[6,13,6,16],[50,16,50,19],[8,23,8,26],[8,28,8,31],[8,33,8,36],[8,38,8,41],[46,20,46,21],[47,20,47,21]]}
[null,null,null,null,null,null,null,null,null,null,null,null,null,null,null,null,null,"مدرسة "]
[null,null,null,null,null,null,null,null,null,null,null,null,null,null,null,null,null,null,"المستوى الخامس ابتدائي"]
[null,null,null,null,null,null,null,null,null,null,null,null,null,null,null,null,null,null,"المديرية "]
[null,null,null,null,null,null,null,null,null,null,null,null,null,null,null,null,"نقط المراقبة المستمرة  1 دورة 2"]
[]
["ملاحظات","التراكيب",null,null,null,null,null,null,null,null,null,null,null,null,null,null,null,null,"المواد","     ","رت"]
[null,"المستثنى بالا",null,null,null,"التمييز",null,null,null,"جمع المذكر و المؤنث السالمين",null,null,null,"الحال",null,null,null,"النقطة",null,"اسماء التلاميذ"]
[null,0,1,2,3,0,1,2,3,0,1,2,3,0,1,2,3]
[null,null,null,null,"x",null,null,null,"x",null,null,"x",null,null,null,"x",null,null,null,"صفاء",1,null,null,"3 = متمكن",null,null,null,null,"2 =  متمكن نسبيا",null,null,null,null,"1 = في طور التمكن",null,null,null,null,"0 = غير متمكن "]
[null,"x",null,null,null,"x",null,null,null,"x",null,null,null,"x",null,null,null,null,null,"أيوب ",2,null,null,"المستثنى","التمييز","ج المذكر و المؤنث السالمين","الحال",null,"المستثنى","التمييز","ج المذكر و المؤنث السالمين","الحال",null,"المستثنى","التمييز","ج المذكر و المؤنث السالمين","الحال",null,"المستثنى","التمييز","ج المذكر و المؤنث السالمين","الحال"]
[null,"x",null,null,null,"x",null,null,null,"x",null,null,null,"x",null,null,null,null,null,"آية ",3]
[null,"x",null,null,null,"x",null,null,null,"x",null,null,null,"x",null,null,null,null,null," بلال",4]
[null,null,null,null,"x",null,null,"x",null,null,null,"x",null,null,null,"x",null,null,null," معاد",5]
[null,null,null,null,"x",null,null,null,"x",null,null,null,"x",null,null,null,"x",null,null,"كوثر",6]
[null,null,null,null,"x",null,null,null,"x",null,null,null,"x",null,null,"x",null,null,null," عمر",7]
[null,null,null,"x",null,null,null,"x",null,null,"x",null,null,null,"x",null,null,null,null," زهرة",8,null," "]
[null,"x",null,null,null,null,"x",null,null,"x",null,null,null,"x",null,null,null,null,null," محمد",9]
[null,null,null,null,"x",null,null,null,"x",null,null,null,"x",null,null,null,"x",null,null,"أكرم",10]
[null,null,null,null,"x",null,null,"x",null,null,null,null,"x",null,null,null,"x",null,null," آية",11]
[null,null,null,"x",null,null,"x",null,null,null,"x",null,null,null,"x",null,null,null,null," رضا",12]
[null,null,null,null,"x",null,null,null,"x",null,"x",null,null,null,null,null,"x",null,null," إحسان",13]
[null,null,null,"x",null,null,null,null,"x","x",null,null,null,null,"x",null,null,null,null,"وصال",14]
[null,null,null,null,"x",null,"x",null,null,null,null,null,"x",null,null,null,"x",null,null," موسى",15]
[null,null,null,null,"x",null,null,"x",null,null,"x",null,null,null,"x",null,null,null,null," ملاك",16]
[null,"x",null,null,null,"x",null,null,null,"x",null,null,null,"x",null,null,null,null,null," سومية",17]
[null,null,null,null,"x",null,null,null,"x",null,"x",null,null,null,"x",null,null,null,null,"دعاء",18]
[null,null,null,null,"x",null,null,"x",null,null,"x",null,null,null,null,null,"x",null,null," إكرام",19]
[null,"x",null,null,null,null,"x",null,null,"x",null,null,null,null,"x",null,null,null,null,"رميساء",20]
[null,null,null,null,"x",null,null,null,"x",null,null,null,"x",null,null,null,"x",null,null," أيوب",21]
[null,null,null,null,"x",null,"x",null,null,null,"x",null,null,null,"x",null,null,null,null," آية2",22]
[null,null,null,null,"x",null,"x",null,null,null,null,"x",null,null,null,null,"x",null,null," مارية",23]
[null,null,null,null,"x",null,null,"x",null,null,null,null,"x",null,null,"x",null,null,null,"خولة",24]
[null,null,null,null,"x",null,"x",null,null,null,null,"x",null,null,null,"x",null,null,null," خديجة",25]
[null,null,null,null,"x",null,null,"x",null,null,"x",null,null,null,"x",null,null,null,null,"محمد",26]
[null,null,null,null,"x",null,"x",null,null,null,null,"x",null,null,null,null,"x",null,null,"جهاد",27]
[null,null,null,null,"x",null,"x",null,null,null,null,"x",null,null,null,null,"x",null,null,"فاطمة الزهراء",28]
[null,"x",null,null,null,"x",null,null,null,"x",null,null,null,"x",null,null,null,null,null," خليل",29]
[null,null,null,"x",null,"x",null,null,null,null,"x",null,null,null,null,"x",null,null,null," فاطمة الزهراء2",30]
[null,"x",null,null,null,"x",null,null,null,"x",null,null,null,"x",null,null,null,null,null,"مروة ",31]
[null,null,null,null,"x",null,null,null,"x",null,null,"x",null,null,"x",null,null,null,null,"أشرف",32]
[null,null,null,null,"x",null,null,null,"x",null,null,null,"x",null,null,null,"x",null,null," ريم",33]
[null,"x",null,null,null,"x",null,null,null,"x",null,null,null,"x",null,null,null,null,null," دنيا",34]
[null,null,null,null,"x",null,null,null,"x",null,null,"x",null,null,"x",null,null,null,null," زياد",35]
[null,null,null,null,"x",null,null,null,"x",null,null,null,"x",null,null,null,"x",null,null," خولة",36]
[null,null,null,null,"x",null,null,"x",null,null,null,"x",null,null,null,null,"x",null,null," فرح",37]
[]
[null,{"$f":"COUNTIF(B9:B45,\"x\")","v":9},0,4,24,8,9,8,12,10,9,9,9,8,10,6,{"$f":"COUNTIF(Q9:Q45,\"x\")","v":13},null,null,{"$f":"COUNTA(T9:T45)","v":37},"المجموع"]
[null,{"$f":"(B47/$T$47)","v":0.24324324324324326},0,0.10810810810810811,0.64864864864864868,0.21621621621621623,0.24324324324324326,0.21621621621621623,0.32432432432432434,0.27027027027027029,0.24324324324324326,0.24324324324324326,0.24324324324324326,0.21621621621621623,0.27027027027027029,0.16216216216216217,{"$f":"(Q47/$T$47)","v":0.35135135135135137},null,null,null,"النسبة المئوية"]